lending/lending_fUSD_20240120
["ID","MTS","AMOUNT","RATE_DAILY","PERIOD"]
[312304702,1705766626340,-1838.28124524,0.00049948,60]
[312304703,1705766626364,-2634.82355194,0.00049949,60]
[312304704,1705766626389,-2930.17533012,0.00049949,60]
[312304705,1705766626413,-2802.2005386,0.00049951,60]
[312304706,1705766626443,-2853.63605917,0.00049951,60]
[312304707,1705766626469,-2920.30729612,0.00049953,60]
[312304708,1705766626493,-2993.59208272,0.00049955,60]
[312304709,1705766626518,-2915.76078903,0.00049957,60]
[312304710,1705766626543,-2919.51917544,0.00049958,60]
[312304711,1705766626568,-1514.63690944,0.00049961,60]
[312304712,1705766626592,-2848.45487443,0.00049961,60]
[312304713,1705766626616,-2717.15289546,0.00049965,60]
[312304714,1705766626642,-418.93912942,0.00049969,60]
[312304715,1705766626666,-2858.83936685,0.00049971,60]
[312304716,1705766626691,-2378.78938006,0.00049971,60]
[312304717,1705766626717,-2815.44571068,0.00049972,60]
[312304718,1705766626742,-2913.16219246,0.00049974,60]
[312304719,1705766626766,-2469.27896055,0.00049975,60]
[312304720,1705766626789,-2381.37000042,0.0004998,60]
[312304721,1705766626816,-2894.66475262,0.00049982,60]
[312304722,1705766626839,-2913.31435688,0.00049982,60]
[312304723,1705766626863,-2821.31663252,0.00049984,60]
[312304724,1705766626887,-1507.04789515,0.00049986,60]
[312304725,1705766626913,-150.0,0.00049986,60]
[312304726,1705766626939,-2915.41433224,0.00049986,60]
[312304727,1705766626964,-500.0,0.00049987,49]
[312304728,1705766626990,-2276.00407707,0.00049987,60]
[312304729,1705766627015,-1589.781846,0.00049989,60]
[312304730,1705766627039,-2910.33865827,0.0004999,60]
[312304731,1705766627063,-2428025.50497943,0.00049992,120]
[312304732,1705766803670,157.35,0.00018969,2]
[312304733,1705766821485,3006.32021403,0.00018969,2]
[312304734,1705766837473,3006.32021403,0.00018969,2]
[312304735,1705766855480,3006.32021403,0.00018969,2]
[312304736,1705766871477,3001.92308227,0.00018969,2]
[312304737,1705766891464,150.0,0.00018987,2]
[312304738,1705766959545,150.0,0.00018531,2]
[312304739,1705766971962,5800.0,0.00018686,2]
[312304740,1705766987525,1971.609997,0.00035303,30]
[312304741,1705767032672,251.33576022,0.00019444,2]
[312304743,1705767034520,-956.9078761,0.00019514,2]
[312304753,1705767038164,-1256.70561379,0.00019513,2]
[312304754,1705767038173,-327.32790039,0.00019513,2]
[312304755,1705767038182,-574.21154404,0.00019514,2]
[312304756,1705767038223,-178.84244519,0.00019514,2]
[312304757,1705767038233,-155.0,0.00019514,2]
[312304758,1705767038242,-698.16216807,0.00019514,2]
[312304759,1705767038251,-525.07174403,0.00019514,2]
[312304760,1705767038261,-582.2441808,0.00019514,2]
[312304761,1705767038270,-235.25134461,0.00019514,2]
[312304762,1705767038279,-400.71715327,0.00019514,2]
[312304763,1705767038288,-218.05929931,0.00019514,2]
[312304764,1705767038297,-2621.14781123,0.00019514,2]
[312304765,1705767038306,-199.32847921,0.00019514,2]
[312304766,1705767038315,-1915.89251298,0.00019514,2]
[312304767,1705767038324,-843.46788504,0.00019515,2]
[312304768,1705767038333,-1045.79945445,0.00019515,2]
[312304769,1705767038342,-651.85793696,0.00019515,2]
[312304770,1705767038351,-33771.39944066,0.00019515,2]
[312304771,1705767038360,-253.07011013,0.00019515,2]
[312304772,1705767038369,-524.01683029,0.00019515,2]
[312304773,1705767038380,-2146.45372253,0.00019516,2]
[312304774,1705767038389,-155.0,0.00019516,2]
[312304775,1705767038398,-1178.76061238,0.00019516,2]
[312304776,1705767038407,-5445.7964682,0.00019516,2]
[312304777,1705767038416,-5217.27578484,0.00019516,2]
[312304778,1705767038426,-155.0,0.00019516,2]
[312304779,1705767038435,-543.13884627,0.00019516,2]
[312304780,1705767038444,-248.83954256,0.00019516,2]
[312304781,1705767038453,-171.96178332,0.00019517,2]
[312304782,1705767038462,-155.0,0.00019517,2]
[312304783,1705767038472,-265.60479765,0.00019517,2]
[312304784,1705767038481,-1044.43077942,0.00019517,2]
[312304785,1705767038490,-22618.4614423,0.00019517,2]
[312304786,1705767038500,-474.61336807,0.00019517,2]
[312304787,1705767038508,-1204.08066504,0.00019517,2]
[312304788,1705767038518,-7786.97664148,0.00019518,2]
[312304789,1705767038527,-1768.73893958,0.00019518,2]
[312304790,1705767038536,-160.73027648,0.00019518,2]
[312304791,1705767038546,-161.84530984,0.00019518,2]
[312304792,1705767038555,-384.78381974,0.00019518,2]
[312304793,1705767038564,-767.00185016,0.00019518,2]
[312304794,1705767038573,-155.0,0.00019518,2]
[312304796,1705767038582,-917.23152402,0.00019518,2]
[312304797,1705767038592,-155.0,0.00019518,2]
[312304799,1705767038602,-155.0,0.00019518,2]
[312304801,1705767038611,-524.19831016,0.00019518,2]
[312304803,1705767038620,-260.29229258,0.00019518,2]
[312304805,1705767038630,-155.0,0.00019518,2]
[312304807,1705767038639,-302.37969356,0.00019519,2]
[312304809,1705767038648,-521.0,0.00019519,2]
[312304811,1705767038658,-159.92237704,0.00019519,2]
[312304813,1705767038667,-211.78439045,0.00019519,2]
[312304815,1705767038676,-307.6502179,0.00019519,2]
[312304817,1705767038686,-377.0614235,0.00019519,2]
[312304819,1705767038696,-155.0,0.00019519,2]
[312304821,1705767038705,-155.0,0.00019519,2]
[312304823,1705767038714,-6441.03694263,0.00019519,2]
[312304826,1705767038724,-155.0,0.00019519,2]
[312304828,1705767038733,-529.54586696,0.00019519,2]
[312304830,1705767038742,-2903.08663668,0.00019519,2]
[312304832,1705767038753,-4628.20523515,0.00019519,2]
[312304835,1705767038762,-202.76099161,0.00019519,2]
[312304837,1705767038771,-245.02111163,0.00019519,2]
[312304839,1705767038780,-263.52320563,0.0001952,2]
[312304841,1705767038789,-2307.835347,0.0001952,2]
[312304843,1705767038800,-371.36730385,0.0001952,2]
[312304845,1705767038810,-155.0,0.0001952,2]
[312304847,1705767038820,-155.0,0.0001952,2]
[312304849,1705767038829,-314.41237187,0.0001952,2]
[312304851,1705767038838,-250.42352751,0.0001952,2]
[312304853,1705767038847,-354.6810307,0.0001952,2]
[312304855,1705767038856,-3626.6807795,0.0001952,2]
[312304856,1705767038865,-473.45584329,0.0001952,2]
[312304857,1705767038875,-3045.64408607,0.00019521,2]
[312304858,1705767038883,-220.51136302,0.00019521,2]
[312304859,1705767038893,-3861.05352381,0.00019521,2]
[312304860,1705767038902,-10560.1340318,0.00019521,2]
[312304861,1705767038911,-177.91292476,0.00019521,2]
[312304862,1705767038920,-1071.17471746,0.00019521,2]
[312304863,1705767038929,-196.82515123,0.00019521,2]
[312304864,1705767038939,-494.84174762,0.00019521,2]
[312304865,1705767038954,-4638.11355098,0.00019521,2]
[312304866,1705767038963,-2948.28581293,0.00019521,2]
[312304867,1705767038972,-418.21791161,0.00019521,2]
[312304868,1705767038981,-158.86466524,0.00019522,2]
[312304869,1705767038990,-759.28292396,0.00019522,2]
[312304871,1705767039000,-270.13923734,0.00019522,2]
[312304873,1705767039009,-361.86478892,0.00019522,2]
[312304875,1705767039018,-1057394.73999223,0.00019522,2]
[312304878,1705767039028,-150.0,0.00019523,2]
[312304879,1705767039037,-3916.47,0.00019523,2]
[312304881,1705767039046,-232.10612969,0.00019523,2]
[312304883,1705767039055,-43019.25246543,0.00019523,2]
[312304885,1705767039065,-24354.95155812,0.00019523,2]
[312304888,1705767039074,-300.0,0.00019528,2]
[312304890,1705767039083,-150.0,0.00019528,2]
[312304892,1705767039092,-200.0,0.00019544,2]
[312304894,1705767039101,-14926.0,0.00019589,2]
[312304896,1705767039111,-500.0,0.00019751,2]
[312304897,1705767039120,-314.09,0.00019751,2]
[312304900,1705767039131,-204.09,0.00019862,2]
[312304902,1705767039140,-215.56054804,0.00019965,2]
[312304904,1705767039149,-1096.02714429,0.0002,2]
[312304906,1705767039159,-4489.60407291,0.0002,2]
[312304908,1705767039168,-565.9057501,0.00020467,2]
[312304910,1705767039178,-200.0,0.00020511,2]
[312304912,1705767039186,-1228.73,0.00020671,2]
[312304914,1705767039195,-155.0,0.00020697,2]
[312304916,1705767039204,-155.10626264,0.00020697,2]
[312304918,1705767039213,-155.44142013,0.00020697,2]
[312304920,1705767039223,-157.52,0.00020711,2]
[312304922,1705767039232,-157.52,0.00020927,2]
[312304924,1705767039243,-6092.02425308,0.00020937,2]
[312304926,1705767039252,-730.38214306,0.00021,2]
[312304928,1705767039260,-157.52,0.00021143,2]
[312304930,1705767039269,-300.0,0.00021274,2]
[312304931,1705767039278,-500.0,0.000213,2]
[312304934,1705767039287,-1000.0,0.00021329,2]
[312304936,1705767039296,-157.52,0.00021359,2]
[312304938,1705767039306,-3631.61,0.00021398,2]
[312304940,1705767039315,-250.0,0.00021422,2]
[312304942,1705767039324,-2705.0,0.00021449,2]
[312304944,1705767039333,-2000.0,0.00021452,2]
[312304946,1705767039342,-204.09,0.00021506,2]
[312304948,1705767039352,-157.52,0.00021575,2]
[312304950,1705767039361,-200.0,0.00021606,2]
[312304952,1705767039370,-157.35,0.00021658,2]
[312304954,1705767039380,-165.06,0.00021676,2]
[312304956,1705767039389,-158.9,0.00021696,2]
[312304958,1705767039398,-500.0,0.00021738,2]
[312304960,1705767039407,-316.08763085,0.00021783,2]
[312304962,1705767039416,-157.52,0.00021791,2]
[312304964,1705767039426,-200.0,0.000218,7]
[312304966,1705767039435,-183.33,0.00021837,2]
[312304968,1705767039444,-2986.53806604,0.00021847,2]
[312304970,1705767039453,-712.93008703,0.0002188,2]
[312304972,1705767039462,-308.22134209,0.00021881,5]
[312304973,1705767039471,-308.22134209,0.00021881,5]
[312304976,1705767039480,-23900.0,0.00021883,2]
[312304977,1705767039490,-500.0,0.000219,7]
[312304980,1705767039500,-250.0,0.00021918,2]
[312304982,1705767039509,-316.08763079,0.00021943,2]
[312304984,1705767039519,-165.06,0.00022001,2]
[312304986,1705767039529,-625.68257867,0.00022077,2]
[312304987,1705767039538,-3186.46864652,0.00022077,2]
[312304990,1705767039547,-419.33476208,0.00022077,2]
[312304992,1705767039557,-316.08763079,0.00022102,2]
[312304993,1705767039566,-316.08763079,0.00022262,2]
[312304995,1705767039576,-505.73139326,0.00022323,2]
[312304997,1705767039585,-165.06,0.00022326,2]
[312304999,1705767039594,-800.0,0.000224,8]
[312305001,1705767039603,-316.08763079,0.00022421,2]
[312305003,1705767039612,-1100.0,0.000225,8]
[312305005,1705767039622,-316.08763079,0.00022581,2]
[312305008,1705767039631,-1400.0,0.000226,8]
[312305010,1705767039641,-165.06,0.00022651,2]
[312305012,1705767039650,-200.0,0.000227,8]
[312305014,1705767039659,-316.08763079,0.0002274,2]
[312305016,1705767039668,-269.68289212,0.00022767,2]
[312305018,1705767039677,-3658.5642,0.00022799,2]
[312305020,1705767039686,-215.79672251,0.00022799,4]
[312305022,1705767039695,-187.18634131,0.000228,2]
[312305023,1705767039705,-200.0,0.000228,8]
[312305025,1705767039714,-245000.0,0.00022897,2]
[312305028,1705767039724,-500.0,0.00022899,2]
[312305030,1705767039733,-100000.0,0.00022899,2]
[312305032,1705767039742,-1000.0,0.00022899,2]
[312305033,1705767039751,-628774.20228284,0.000229,3]
[312305035,1705767039760,-151.38612863,0.000229,2]
[312305038,1705767039770,-505905.04796851,0.000229,2]
[312305039,1705767039779,-316.08763079,0.000229,2]
[312305042,1705767039789,-4105.39986096,0.000229,2]
[312305044,1705767039799,-200.0,0.000229,8]
[312305046,1705767039809,-165.06,0.00022976,2]
[312305048,1705767039818,-1000.0,0.00022979,5]
[312305050,1705767039828,-826.31972725,0.00022979,5]
[312305051,1705767039837,-417.99759003,0.00022986,2]
[312305053,1705767039846,-386.98615303,0.00022997,2]
[312305055,1705767039855,-404.33758055,0.00022997,2]
[312305057,1705767039864,-337.65513857,0.00022997,2]
[312305060,1705767039873,-155.0,0.00022997,2]
[312305062,1705767039883,-155.0,0.00022997,2]
[312305064,1705767039892,-286.6896523,0.00022997,2]
[312305066,1705767039901,-1099.52122903,0.00022997,2]
[312305068,1705767039910,-155.9522538,0.00022997,2]
[312305070,1705767039919,-155.0,0.00022997,2]
[312305072,1705767039928,-172.29680941,0.00022997,2]
[312305074,1705767039938,-155.0,0.00022997,2]
[312305076,1705767039950,-155.0,0.00022997,2]
[312305078,1705767039959,-155.95322316,0.00022997,2]
[312305080,1705767039968,-626.01392787,0.00022997,2]
[312305082,1705767039977,-155.50156782,0.00022997,2]
[312305084,1705767039986,-157.07164556,0.00022997,2]
[312305085,1705767039995,-155.30397585,0.00022997,2]
[312305087,1705767040004,-155.51550435,0.00022997,2]
[312305089,1705767040014,-2018.10308734,0.00022997,2]
[312305092,1705767040025,-234.42493184,0.00022997,2]
[312305094,1705767040034,-235.69028679,0.00022997,2]
[312305096,1705767040043,-162.34847253,0.00022997,2]
[312305098,1705767040052,-155.50450126,0.00022997,2]
[312305100,1705767040061,-223.87665082,0.00022997,2]
[312305102,1705767040070,-155.26555109,0.00022997,2]
[312305104,1705767040079,-282.35637577,0.00022997,2]
[312305106,1705767040088,-1416.95405969,0.00022997,2]
[312305108,1705767040097,-155.21024572,0.00022997,2]
[312305110,1705767040106,-2597.20004126,0.00022997,2]
[312305112,1705767040115,-4272.85688263,0.00022997,2]
[312305114,1705767040125,-543.30184604,0.00022997,2]
[312305116,1705767040134,-155.0,0.00022997,2]
[312305118,1705767040143,-155.81497192,0.00022997,2]
[312305120,1705767040152,-364.09538564,0.00022997,2]
[312305122,1705767040160,-289.88692219,0.00022997,2]
[312305124,1705767040170,-295.51839243,0.00022997,2]
[312305126,1705767040179,-155.0,0.00022997,2]
[312305127,1705767040188,-155.60925065,0.00022997,2]
[312305129,1705767040197,-501.47469399,0.00022997,2]
[312305130,1705767040206,-326.6529487,0.00022997,2]
[312305131,1705767040216,-276.63244714,0.00022997,2]
[312305132,1705767040225,-284.87917924,0.00022997,2]
[312305133,1705767040234,-155.35904874,0.00022998,2]
[312305134,1705767040243,-956.9078761,0.00022999,4]
[312305135,1705767040252,-276.09358228,0.00022999,2]
[312305136,1705767040262,-150.0,0.00022999,2]
[312305137,1705767040272,-150.0,0.00022999,2]
[312305138,1705767040281,-150.0,0.00022999,2]
[312305139,1705767040473,-150.0,0.00022999,2]
[312305140,1705767040483,-150.0,0.00022999,2]
[312305141,1705767040492,-150.0,0.00022999,2]
[312305142,1705767040501,-150.0,0.00022999,2]
[312305143,1705767040510,-150.0,0.00022999,2]
[312305144,1705767040520,-150.0,0.00022999,2]
[312305145,1705767040530,-150.0,0.00022999,2]
[312305146,1705767040540,-150.0,0.00022999,2]
[312305147,1705767040549,-150.0,0.00022999,2]
[312305148,1705767040559,-150.0,0.00022999,2]
[312305149,1705767040569,-150.0,0.00022999,2]
[312305150,1705767040579,-150.0,0.00022999,2]
[312305151,1705767040589,-150.0,0.00022999,2]
[312305153,1705767040599,-150.0,0.00022999,2]
[312305155,1705767040608,-150.0,0.00022999,2]
[312305156,1705767040618,-150.0,0.00022999,2]
[312305157,1705767040628,-150.0,0.00022999,2]
[312305158,1705767040638,-150.0,0.00022999,2]
[312305159,1705767040647,-150.0,0.00022999,2]
[312305160,1705767040657,-150.0,0.00022999,2]
[312305161,1705767040667,-150.0,0.00022999,2]
[312305162,1705767040676,-198.28764474,0.00023,2]
[312305163,1705767040685,-1411571.08997791,0.00023,2]
[312305164,1705767040700,-999.53633966,0.00023,2]
[312305165,1705767041074,-844.96821136,0.00019513,2]
[312305166,1705767041087,-296.12134139,0.00019513,2]
[312305167,1705767041102,-500.0,0.00019513,2]
[312305168,1705767041114,-2607.70685749,0.00019513,2]
[312305169,1705767041123,-940.96622262,0.00019513,2]
[312305170,1705767041133,-816.73480755,0.00019513,2]
[312305171,1705767041153,-1024.90486174,0.00019513,2]
[312305172,1705767041165,-802.29286912,0.00019513,2]
[312305173,1705767041544,-7885.74391433,0.00019513,2]
[312305174,1705767041555,-177.91292476,0.00019513,2]
[312305175,1705767041566,-220.51136302,0.00019513,2]
[312305176,1705767041576,-33387.39114312,0.00019514,2]
[312305177,1705767041585,-1739.1471,0.00021783,2]
[312305178,1705767041595,-221136.80729567,0.00023,2]
[312305179,1705767041607,-295.41653518,0.00023,2]
[312305180,1705767041618,-752.08599537,0.00023,2]
[312305181,1705767041631,-366.43596909,0.00023,2]
[312305182,1705767041654,-412.18834311,0.00023,2]
[312305183,1705767041666,-720100.64363785,0.00023,2]
[312305185,1705767041677,-2873913.42864964,0.00023,2]
[312305188,1705767041695,-7420.13946109,0.00023,2]
[312305211,1705767043285,-884.50235171,0.00023,2]
[312305212,1705767043296,-1011.99388521,0.00023,2]
[312305213,1705767043308,-1687.44,0.00023,2]
[312305214,1705767043318,-450.3239636,0.00023,2]
[312305215,1705767043396,-375.18668375,0.00023,2]
[312305216,1705767043407,-5122.05950804,0.00023,2]
[312305217,1705767043419,-2557.33475075,0.00023,2]
[312305218,1705767043430,-3932.82031937,0.00023,2]
[312305219,1705767043455,-867.27214029,0.00023,2]
[312305220,1705767043467,-21185.79768197,0.00023,2]
[312305268,1705767046213,-2356.43045917,0.00023,2]
[312305271,1705767046225,-100393.11022942,0.00023,2]
[312305276,1705767046277,-411.52,0.00023,2]
[312305281,1705767046337,-9125.3641418,0.00023,2]
[312305283,1705767046349,-1143.161122,0.00023,2]
[312305285,1705767046360,-1795.26069847,0.00023,2]
[312305287,1705767046371,-45849.09050388,0.00023,2]
[312305289,1705767046382,-547.29616453,0.00023,2]
[312305291,1705767046394,-980.0,0.00023,2]
[312305293,1705767046410,-315.53528293,0.00023,2]
[312305295,1705767046425,-1135.31120193,0.00023,2]
[312305297,1705767046437,-1403.99118836,0.00023,2]
[312305299,1705767046448,-263712.65620263,0.00023,2]
[312305305,1705767046513,-12762.11558715,0.00023,2]
[312305307,1705767046525,-339.12363907,0.00023,2]
[312305309,1705767046536,-431.0,0.00023,2]
[312305310,1705767046546,-352.5,0.00023,2]
[312305313,1705767046566,-828.58769016,0.00023,2]
[312305315,1705767046579,-1348.82775721,0.00023,2]
[312305317,1705767046590,-2910.55810647,0.00023,2]
[312305319,1705767046602,-890.2,0.00023,2]
[312305321,1705767046613,-37122.53107689,0.00023,2]
[312305323,1705767046628,-1710.88571407,0.00023,2]
[312305325,1705767046639,-734.02466279,0.00023,2]
[312305330,1705767083703,2002.91,0.00035507,30]
[312305331,1705767204979,2996.95,0.00035507,30]
[312305332,1705767235339,5249.86,0.00035507,30]
[312305333,1705767256570,5800.0,0.00018678,2]
[312305334,1705767260587,207.73,0.00018863,2]
[312305335,1705767279280,5800.0,0.00018669,2]
[312305336,1705767298560,170.49069514,0.00019416,2]
[312305337,1705767302468,5800.0,0.00018661,2]
[312305338,1705767325939,5800.0,0.00018652,2]
[312305339,1705767329312,300.0,0.00019415,2]
[312305340,1705767348381,5800.0,0.00018644,2]
[312305341,1705767373570,155.0,0.00019503,2]
[312305342,1705767373897,155.0,0.00019503,2]
[312305343,1705767374109,582.2441808,0.00019503,2]
[312305344,1705767375351,155.0,0.00019503,2]
[312305345,1705767375648,155.0,0.00019503,2]
[312305346,1705767382808,4638.11355098,0.00019503,2]
[312305347,1705767384148,2307.835347,0.00019503,2]
[312305348,1705767386473,2621.14781123,0.00019503,2]
[312305349,1705767387265,289.07791306,0.00019503,2]
[312305350,1705767390969,155.0,0.00019503,2]
[312305351,1705767392125,155.0,0.00019503,2]
[312305352,1705767392355,155.0,0.00019503,2]
[312305353,1705767392512,1768.73893958,0.00019503,2]
[312305354,1705767393046,253.07011013,0.00019503,2]
[312305355,1705767395508,161.84530984,0.00019503,2]
[312305356,1705767395741,24354.95155812,0.00019503,2]
[312305357,1705767401017,767.00185016,0.00019503,2]
[312305358,1705767402368,248.83954256,0.00019503,2]
[312305359,1705767402587,302.37969356,0.00019503,2]
[312305360,1705767403553,2903.08663668,0.00019503,2]
[312305361,1705767403925,387.12521782,0.00019503,2]
[312305362,1705767405479,371.36730385,0.00019503,2]
[312305363,1705767405676,504.1310938,0.00019503,2]
[312305364,1705767406704,364.22141274,0.00019503,2]
[312305365,1705767407975,5217.27578484,0.00019503,2]
[312305366,1705767408054,1365.33757079,0.00019503,2]
[312305367,1705767408251,543.13884627,0.00019503,2]
[312305368,1705767408348,263.52320563,0.00019503,2]
[312305369,1705767408508,286.78293325,0.00019503,2]
[312305370,1705767409302,218.05929931,0.00019503,2]
[312305371,1705767409514,155.0,0.00019503,2]
[312305372,1705767409543,1709.96186533,0.00019503,2]
[312305373,1705767409827,33387.39114312,0.00019503,2]
[312305374,1705767409983,3626.6807795,0.00019503,2]
[312305375,1705767410732,501.64649698,0.00019503,2]
[312305376,1705767411183,525.07174403,0.00019503,2]
[312305377,1705767411243,10560.1340318,0.00019503,2]
[312305378,1705767411539,3045.64408607,0.00019503,2]
[312305379,1705767411572,1915.89251298,0.00019503,2]
[312305380,1705767413788,235.25134461,0.00019503,2]
[312305381,1705767414246,202.76099161,0.00019503,2]
[312305382,1705767415167,400.71715327,0.00019503,2]
[312305383,1705767416533,2146.45372253,0.00019503,2]
[312305384,1705767417425,4248.79641024,0.00019503,2]
[312305385,1705767417456,3861.05352381,0.00019503,2]
[312305386,1705767417763,155.0,0.00019503,2]
[312305387,1705767418949,1256.70561379,0.00019503,2]
[312305388,1705767419028,543.49839959,0.00019503,2]
[312305389,1705767419061,651.85793696,0.00019503,2]
[312305390,1705767419209,698.16216807,0.00019503,2]
[312305391,1705767419244,199.32847921,0.00019503,2]
[312305392,1705767419275,245.02111163,0.00019503,2]
[312305393,1705767419331,404.48659624,0.00019503,2]
[312305394,1705767420235,361.86478892,0.00019503,2]
[312305395,1705767420280,473.45584329,0.00019503,2]
[312305396,1705767421683,260.29229258,0.00019503,2]
[312305397,1705767422257,250.42352751,0.00019503,2]
[312305398,1705767422753,1071.17471746,0.00019503,2]
[312305399,1705767423323,307.6502179,0.00019503,2]
[312305400,1705767423469,940.96622262,0.00019503,2]
[312305401,1705767423933,295.61943597,0.00019503,2]
[312305402,1705767424577,4274.40730541,0.00019503,2]
[312305403,1705767425613,7786.97664148,0.00019503,2]
[312305404,1705767425714,1045.79945445,0.00019503,2]
[312305405,1705767425836,155.0,0.00019503,2]
[312305406,1705767425940,234.50854067,0.00019503,2]
[312305407,1705767428544,232.10612969,0.00019503,2]
[312305408,1705767430985,384.78381974,0.00019503,2]
[312305409,1705767431232,265.60479765,0.00019503,2]
[312305410,1705767434963,327.32790039,0.00019502,2]
[312305411,1705767435689,474.61336807,0.00019502,2]
[312305412,1705767436664,354.6810307,0.00019502,2]
[312305413,1705767437664,196.82515123,0.00019502,2]
[312305414,1705767491171,305.810498,0.00035469,30]
[312305415,1705767503469,843.46788504,0.00019503,2]
[312305416,1705767506498,155.0,0.00019503,2]
[312305417,1705767509615,211.78439045,0.00019503,2]
[312305418,1705767510266,314.41237187,0.00019503,2]
[312305419,1705767564444,10529.67645274,0.00019503,2]
[312305420,1705767623701,582.2441808,0.00019503,2]
[312305421,1705767634843,4638.11355098,0.00019503,2]
[312305422,1705767655757,24354.95155812,0.00019503,2]
[312305423,1705767658022,3626.6807795,0.00019503,2]
[312305424,1705767662167,150.0,0.00019503,2]
[312305425,1705767664015,525.07174403,0.00019503,2]
[312305426,1705767667377,245.02111163,0.00019503,2]
[312305427,1705767673243,698.16216807,0.00019503,2]
[312305428,1705767685548,3045.64408607,0.00019503,2]
[312305429,1705767688989,1256.70561379,0.00019503,2]
[312305430,1705767690190,2307.835347,0.00019503,2]
[312305431,1705767690584,232.10612969,0.00019503,2]
[312305432,1705767699740,474.61336807,0.00019503,2]
[312305433,1705767700994,384.78381974,0.00019503,2]
[312305434,1705767702473,4248.79641024,0.00019503,2]
[312305435,1705767709122,265.60479765,0.00019502,2]
[312305436,1705767722548,265.49,0.00018656,2]
[312305437,1705767728280,1045.79945445,0.00019503,2]
[312305438,1705767743307,1664.0,0.00035606,30]
[312305439,1705767751510,843.46788504,0.00019503,2]
[312305440,1705767804481,10529.67645274,0.00019503,2]
[312305441,1705767828841,5800.0,0.00018635,2]
[312305442,1705767842168,150.0,0.00019503,2]
[312305443,1705767851259,5800.0,0.00018627,2]
[312305444,1705767851851,3626.6807795,0.00019503,2]
[312305445,1705767853317,50529.00867649,0.00019503,2]
[312305446,1705767862649,7428.02088913,0.00019503,2]
[312305447,1705767863671,582.2441808,0.00019503,2]
[312305448,1705767864795,698.16216807,0.00019503,2]
[312305449,1705767867347,50529.00867649,0.00019503,2]
[312305450,1705767871397,283.2384976,0.00019503,2]
[312305451,1705767871820,155.0,0.00019503,2]
[312305452,1705767877141,7428.02088913,0.00019503,2]
[312305453,1705767881380,544.50637499,0.00019503,2]
[312305454,1705767883185,3045.64408607,0.00019503,2]
[312305455,1705767883654,1971.609997,0.00035606,30]
[312305456,1705767883749,155.50359931,0.00017553,2]
[312305457,1705767889368,282.56215802,0.00019503,2]
[312305458,1705767889806,186.95672057,0.00019503,2]
[312305459,1705767890087,232.10612969,0.00019503,2]
[312305460,1705767893471,544.50637499,0.00019503,2]
[312305461,1705767897300,33340.31874745,0.00019503,2]
[312305462,1705767897974,291.93965338,0.00019503,2]
[312305463,1705767899143,7428.02088913,0.00019503,2]
[312305464,1705767902282,5190.29776533,0.00019503,2]
[312305465,1705767909096,1892.88295925,0.00019503,2]
[312305466,1705767913393,593.84569408,0.00019503,2]
[312305467,1705767913740,251.63244978,0.00017553,2]
[312305468,1705767915969,291.701985,0.00019503,2]
[312305469,1705767916491,532.69358857,0.00019503,2]
[312305470,1705767919166,7428.02088913,0.00019503,2]
[312305471,1705767921307,361.34078725,0.00019503,2]
[312305472,1705767922263,3063.29363498,0.00019503,2]
[312305473,1705767929806,1045.79945445,0.00019503,2]
[312305474,1705767931880,533.55329785,0.00019503,2]
[312305475,1705767932504,532.69358857,0.00019503,2]
[312305476,1705767932705,2157.841473,0.00019406,2]
[312305477,1705767935656,3746.65425635,0.00019503,2]
[312305478,1705767939118,361.34078725,0.00019503,2]
[312305479,1705767943629,155.0,0.00019503,2]
[312305480,1705767949085,1891.34948283,0.00019503,2]
[312305481,1705767950516,534.1622976,0.00019503,2]
[312305482,1705767951870,536.29112856,0.00019503,2]
[312305483,1705767957104,361.34078725,0.00019503,2]
[312305484,1705767957604,155.0,0.00019503,2]